bitfinex/quotes_SOLUSD_20250710
["timestamp","ask_amount","ask_price","bid_price","bid_amount"]
[1752186752993,0.67,163.54,163.5,0.03]
[1752186753198,0.67,163.54,163.5,8.998268]
[1752186753402,0.67,163.56,163.5,9.698268]
[1752186753692,9.638268,163.56,163.5,0.73]
[1752186753998,9.638268,163.56,163.5,9.698268]
[1752186754201,0.67,163.56,163.51,8.968268]
[1752186754498,0.67,163.55,163.52,8.968268]
[1752186754793,0.76424553,163.56,163.5,0.03]
[1752186755100,10.40251353,163.56,163.51,8.968268]
[1752186755282,0.67,163.55,163.51,8.968268]
[1752186755685,0.67,163.54,163.51,8.968268]
[1752186755883,0.67,163.54,163.5,0.73]
[1752186756100,1.43424553,163.56,163.51,8.968268]
[1752186756270,0.67,163.55,163.5,0.73]
[1752186756473,0.67,163.55,163.51,8.968268]
[1752186757086,6.78466475,163.55,163.52,8.968268]
[1752186757392,6.11466475,163.55,163.52,9.668268]
[1752186757701,6.11405304,163.56,163.53,9.668268]
[1752186757888,6.11405304,163.56,163.54,8.968268]
[1752186758400,6.11362953,163.57,163.54,8.968268]
[1752186759398,6.78362953,163.57,163.53,9.668268]
[1752186759600,6.78362953,163.57,163.53,8.968268]
[1752186760094,6.78362953,163.57,163.53,9.668268]
[1752186762681,6.11362953,163.57,163.54,9.668268]
[1752186762887,6.11362953,163.57,163.54,8.968268]
[1752186763201,6.78362953,163.57,163.54,8.968268]
[1752186763788,6.78362953,163.57,163.53,8.968268]
[1752186764300,22.0676058,163.57,163.53,8.968268]
[1752186764900,22.0676058,163.57,163.53,5.38077023]
[1752186765092,21.3976058,163.57,163.53,5.38077023]
[1752186765301,0.67,163.56,163.53,5.38077023]
[1752186765486,0.67,163.56,163.52,0.7]
[1752186765681,6.05077023,163.55,163.5,0.73]
[1752186765905,5.38077023,163.53,163.5,0.03]
[1752186766086,5.38077023,163.51,163.5,0.03]
[1752186766482,0.67,163.51,163.5,0.03]
[1752186766686,6.81515596,163.53,163.5,0.03]
[1752186766881,6.81515596,163.53,163.49,0.1]
[1752186766882,0.67,163.51,163.49,0.1]
[1752186767088,6.05077023,163.5,163.49,0.1]
[1752186768104,6.05077023,163.5,163.49,1e-08]
[1752186768282,32.05077023,163.5,163.49,1e-08]
[1752186768907,35.64806408,163.5,163.49,1e-08]
[1752186769288,15.76427203,163.5,163.49,1e-08]
[1752186770706,6.78620795,163.5,163.49,1e-08]
[1752186771009,15.76427203,163.5,163.49,1e-08]
[1752186771191,6.78620795,163.5,163.49,1e-08]
[1752186771390,15.76427203,163.5,163.49,1e-08]
[1752186773330,6.78620795,163.5,163.49,1e-08]
[1752186773608,15.76427203,163.5,163.49,1e-08]
[1752186773804,6.11620795,163.5,163.49,8.97806409]
[1752186775710,6.11583389,163.51,163.49,9.67806409]
[1752186775913,6.11583389,163.51,163.5,9.67806408]
[1752186776433,6.11471199,163.54,163.5,9.67806408]
[1752186776628,6.11471199,163.54,163.52,8.97806408]
[1752186777199,6.11471199,163.54,163.51,8.97806408]
[1752186777732,6.11433812,163.55,163.52,8.97806408]
[1752186778226,6.11433812,163.55,163.52,9.67806408]
[1752186778433,6.11433812,163.55,163.53,8.97806408]
[1752186779105,6.11406905,163.56,163.54,8.97806408]
[1752186779426,6.11406905,163.56,163.54,9.67806408]
[1752186779606,6.11359051,163.57,163.54,9.67806408]
[1752186779932,0.06,163.59,163.56,8.97806408]
[1752186780152,0.06,163.66,163.58,17.95612816]
[1752186780432,0.06,163.66,163.64,8.97806408]
[1752186780724,0.72,163.66,163.6,32.86]
[1752186780916,0.72,163.66,163.62,8.97806408]
[1752186781117,6.77068274,163.65,163.62,8.97806408]
[1752186781310,6.11068274,163.65,163.62,0.7]
[1752186781515,6.1702697,163.66,163.64,8.97806408]
[1752186781714,0.06,163.66,163.65,0.7]
[1752186781926,0.06,163.66,163.65,9.67806408]
[1752186783113,6.17022852,163.66,163.63,0.7]
[1752186783317,0.06,163.66,163.65,8.97806408]
[1752186783519,0.06,163.66,163.64,8.97806408]
[1752186783714,0.06,163.66,163.65,8.97806408]
[1752186783922,0.06,163.66,163.65,9.67806408]
[1752186784810,0.06,163.66,163.62,0.7]
[1752186785011,0.06,163.66,163.6,33.14432314]
[1752186785012,0.06,163.66,163.64,8.97806408]
[1752186785407,0.06,163.66,163.63,8.97806408]
[1752186785828,0.66,163.65,163.61,8.97806408]
[1752186786043,0.66,163.65,163.6,32.86]
[1752186786245,0.66,163.65,163.61,8.97806408]
[1752186786534,0.66,163.65,163.58,0.7]
[1752186786535,8.97806408,163.63,163.58,0.7]
[1752186786733,9.63806408,163.62,163.57,8.97806408]
[1752186786931,0.66,163.61,163.57,8.97806408]
[1752186787325,6.11172228,163.62,163.59,8.97806408]
[1752186787531,6.11172228,163.62,163.59,9.67806408]
[1752186789519,6.11134877,163.63,163.59,8.97806408]
[1752186789718,6.77134877,163.63,163.59,8.97806408]
[1752186790827,6.77134877,163.63,163.59,9.67806408]
[1752186791028,6.11134877,163.63,163.6,9.67806408]
[1752186791350,6.11134877,163.63,163.61,9.67806408]
[1752186791516,6.11134877,163.63,163.61,98.67806408]
[1752186792112,6.11060189,163.65,163.62,9.67806408]
[1752186792325,6.11060189,163.65,163.63,9.67806408]
[1752186792735,0.06,163.66,163.62,89.0]
[1752186792736,0.06,163.66,163.65,22.89528586]
[1752186792934,11.34762965,163.73,163.68,26.0]
[1752186792935,6.10805609,163.72,163.68,26.0]
[1752186793145,0.2,163.73,163.71,8.97806408]
[1752186793322,0.2,163.73,163.72,8.97806408]
[1752186793710,0.2,163.73,163.69,32.8]
[1752186793911,0.2,163.73,163.72,8.97806408]
[1752186794219,0.2,163.73,163.7,0.7]
[1752186794421,0.2,163.73,163.71,8.97806408]
[1752186794731,0.2,163.73,163.72,8.97806408]
[1752186794936,0.2,163.73,163.72,9.67806408]
[1752186795424,0.2,163.73,163.72,0.7]
[1752186795629,0.2,163.73,163.72,9.67806408]
[1752186795841,6.30761619,163.73,163.72,9.67806408]
[1752186796738,6.30761619,163.73,163.71,8.97806408]
[1752186797134,6.30761619,163.73,163.72,8.97806408]
[1752186797749,6.96761619,163.73,163.7,32.8]
[1752186798838,6.30761619,163.73,163.7,41.77806408]
[1752186799730,6.30761619,163.73,163.71,8.97806408]
[1752186800127,6.30761619,163.73,163.72,8.97806408]
[1752186802152,0.2,163.73,163.72,9.64806408]
[1752186802327,6.30761619,163.73,163.7,32.8]
[1752186802529,6.30761619,163.73,163.72,8.97806408]
[1752186804825,6.96761619,163.73,163.71,8.97806408]
[1752186805028,6.96761619,163.73,163.7,41.77806408]
[1752186805530,6.96761619,163.73,163.71,8.97806408]
[1752186805934,6.30761619,163.73,163.71,8.97806408]
[1752186806237,6.30761619,163.73,163.72,8.97806408]
[1752186806450,6.30761619,163.73,163.71,8.97806408]
[1752186807733,6.30761619,163.73,163.71,97.97806408]
[1752186808848,6.30761619,163.73,163.64,89.0]
[1752186808849,10.40156273,163.72,163.64,89.0]
[1752186809025,10.40156273,163.72,163.63,8.97806408]
[1752186809026,8.97806408,163.67,163.63,8.97806408]
[1752186809226,0.66,163.68,163.64,8.97806408]
[1752186809752,0.66,163.67,163.64,8.97806408]
[1752186809936,0.66,163.67,163.63,97.97806408]
[1752186810130,0.66,163.67,163.64,8.97806408]
[1752186810533,0.66,163.67,163.63,89.0]
[1752186810736,6.11022852,163.66,163.63,130.71806408]
[1752186810960,6.11022852,163.66,163.64,8.97806408]
[1752186811161,6.11022852,163.66,163.63,121.74]
[1752186811360,6.11022852,163.66,163.64,8.97806408]
[1752186811747,6.11022852,163.66,163.65,41.71806408]
[1752186813558,6.10948191,163.68,163.65,41.71806408]
[1752186816339,6.10910868,163.69,163.67,8.97806408]
[1752186816668,6.10798924,163.72,163.68,32.72]
[1752186816855,0.66,163.71,163.68,41.69806408]
[1752186817033,0.66,163.71,163.68,32.72]
[1752186817461,0.66,163.71,163.67,97.97806408]
[1752186817693,0.66,163.71,163.67,130.69806408]
[1752186818044,0.66,163.71,163.67,121.72]
[1752186818242,6.10873549,163.7,163.68,8.97806408]
[1752186818657,6.10798924,163.72,163.69,41.69806408]
[1752186818962,6.10798924,163.72,163.7,8.97806408]
[1752186819563,6.10798924,163.72,163.69,42.36806408]
[1752186819771,15.74605332,163.72,163.69,32.72]
[1752186819941,6.76798924,163.72,163.69,32.72]
[1752186820140,6.76798924,163.72,163.69,41.69806408]
[1752186820342,6.10798924,163.72,163.69,41.69806408]
[1752186820538,16.97375416,163.73,163.71,8.97806408]
[1752186820539,0.2,163.73,163.71,8.97806408]
[1752186820743,0.2,163.73,163.69,32.72]
[1752186820744,0.2,163.73,163.72,41.69806408]
[1752186820941,0.2,163.73,163.72,42.36806408]
[1752186821572,0.2,163.73,163.72,42.36806408]
[1752186821772,0.2,163.73,163.72,33.39]
[1752186821773,6.30761619,163.73,163.72,33.39]
[1752186821972,6.30761619,163.73,163.72,41.69806408]
[1752186822161,0.2,163.73,163.72,41.69806408]
[1752186822467,0.2,163.73,163.72,42.36806408]
[1752186823171,0.2,163.75,163.74,43.21116868]
[1752186823465,0.2,163.75,163.74,67.67806408]
[1752186823642,0.2,163.75,163.74,68.34806408]
[1752186826649,0.2,163.75,163.74,91.66647595]
[1752186827484,0.06,163.79,163.75,0.42648471]
[1752186827695,0.06,163.79,163.78,34.97806408]
[1752186827851,0.06,163.79,163.78,68.32806408]
[1752186829807,0.06,163.79,163.78,59.35]
[1752186830091,0.06,163.79,163.78,32.68]
[1752186830288,0.06,163.79,163.75,26.0]
[1752186830289,0.72,163.79,163.77,32.68]
[1752186830591,6.82550621,163.79,163.77,41.65806408]
[1752186831589,6.82550621,163.79,163.77,32.68]
[1752186831779,6.82550621,163.79,163.77,41.65806408]
[1752186833071,0.65,163.78,163.75,26.0]
[1752186833280,0.65,163.77,163.76,32.66]
[1752186834096,6.81550621,163.79,163.76,32.66]
[1752186834294,0.65,163.78,163.76,32.66]
[1752186834798,6.16550621,163.79,163.76,32.66]
[1752186835010,6.10649731,163.76,163.75,41.63806408]
[1752186835300,6.10649731,163.76,163.75,8.97806408]
[1752186835593,6.10649731,163.76,163.75,41.63806408]
[1752186836001,6.75649731,163.76,163.74,32.69]
[1752186836188,0.65,163.75,163.74,32.69]
[1752186836364,0.65,163.75,163.74,0.03]
[1752186836581,6.10649731,163.76,163.74,0.03]
[1752186836880,6.10649731,163.76,163.74,32.69]
[1752186837285,6.75649731,163.76,163.74,32.69]
[1752186838605,0.65,163.75,163.74,0.03]
[1752186840308,0.65,163.75,163.74,89.03]
[1752186840309,6.75687022,163.75,163.74,89.03]
[1752186840803,6.10687022,163.75,163.74,89.03]
[1752186841105,6.75687022,163.75,163.74,89.03]
[1752186841307,6.10612444,163.77,163.74,89.03]
[1752186841516,6.75612444,163.77,163.74,89.03]
[1752186842876,6.75612444,163.77,163.74,121.69]
[1752186843594,0.65,163.76,163.74,121.69]
[1752186844402,0.65,163.76,163.74,89.03]
[1752186844903,0.65,163.76,163.74,94.39743384]
[1752186845085,0.65,163.76,163.74,89.03]
[1752186845499,6.10687022,163.75,163.74,89.03]
[1752186846383,0.76321895,163.78,163.74,95.07743384]
[1752186846585,6.10576668,163.78,163.76,5.36743384]
[1752186846908,6.10576668,163.78,163.75,32.64]
[1752186847078,6.75576668,163.78,163.75,38.00743384]
[1752186847499,2.2468,163.79,163.77,5.36743384]
[1752186847813,0.06,163.79,163.77,32.64]
[1752186847989,0.06,163.79,163.78,5.36743384]
[1752186848688,6.16546895,163.79,163.77,38.00743384]
[1752186848889,0.65,163.78,163.75,38.00743384]
[1752186849702,6.75606085,163.78,163.75,32.64]
[1752186849890,6.10606085,163.78,163.76,5.36743384]
[1752186850091,6.75606085,163.78,163.75,32.64]
[1752186850298,6.75606085,163.78,163.75,38.00743384]
[1752186850599,6.75606085,163.78,163.75,32.64]
[1752186850921,0.65,163.77,163.74,0.03]
[1752186851282,0.65,163.76,163.74,0.03]
[1752186851692,6.75606085,163.78,163.74,5.39743384]
[1752186851898,0.65,163.77,163.74,0.03]
[1752186852107,0.65,163.77,163.74,5.39743384]
[1752186852506,6.10606085,163.78,163.74,5.39743384]
[1752186852909,6.75606085,163.78,163.75,5.36743384]
[1752186853429,6.10606085,163.78,163.74,5.39743384]
[1752186853710,6.16552991,163.79,163.77,5.36743384]
[1752186853888,0.06,163.79,163.77,5.36743384]
[1752186854089,0.06,163.79,163.77,32.64]
[1752186854312,0.06,163.79,163.77,38.00743384]
[1752186854620,0.06,163.79,163.77,32.64]
[1752186854810,0.06,163.79,163.77,38.00743384]
[1752186854999,0.06,163.79,163.77,127.00743384]
[1752186855319,0.06,163.79,163.78,5.36743384]
[1752186856993,0.06,163.79,163.77,127.00743384]
[1752186857199,0.65,163.78,163.77,121.64]
[1752186857398,0.65,163.78,163.77,89.0]
[1752186858315,6.75575161,163.78,163.77,89.0]
[1752186858510,6.10575161,163.78,163.77,89.0]
[1752186859320,6.75575161,163.78,163.77,89.0]
[1752186860020,6.16537883,163.79,163.77,89.0]
[1752186860223,6.81537883,163.79,163.77,89.0]
[1752186861024,6.81537883,163.79,163.76,94.36743384]
[1752186861518,6.81537883,163.79,163.76,89.0]
[1752186862118,0.7,163.78,163.76,89.0]
[1752186862314,5.36743384,163.77,163.74,89.03]
[1752186862700,0.7,163.76,163.74,89.03]
[1752186863715,6.06743384,163.78,163.74,89.03]
[1752186863919,6.80612444,163.77,163.74,89.03]
[1752186865701,6.10612444,163.77,163.75,5.36743384]
[1752186865901,6.10612444,163.77,163.76,5.36743384]
[1752186866108,6.10612444,163.77,163.75,5.36743384]
[1752186866315,6.10612444,163.77,163.75,37.96743384]
[1752186866816,6.10612444,163.77,163.75,126.96743384]
[1752186867622,6.10612444,163.77,163.75,121.6]
[1752186867915,6.10575161,163.78,163.75,121.6]
[1752186868299,6.80575161,163.78,163.75,126.96743384]
[1752186868697,6.10575161,163.78,163.75,127.63743384]
[1752186868898,6.10575161,163.78,163.76,6.03743384]
[1752186869313,6.16549572,163.79,163.76,6.03743384]
[1752186870253,6.86549572,163.79,163.75,126.96743384]
[1752186870613,6.86549572,163.79,163.75,127.63743384]
[1752186871124,12.23292956,163.79,163.75,121.6]
[1752186871322,6.86549572,163.79,163.75,126.96743384]
[1752186871905,0.06,163.79,163.76,0.67]
[1752186872106,0.06,163.79,163.78,5.36743384]
[1752186873012,0.06,163.79,163.78,6.03743384]
[1752186873204,0.06,163.79,163.77,32.6]
[1752186873205,0.76,163.79,163.77,37.96743384]
[1752186874029,0.06,163.79,163.77,37.96743384]
[1752186874615,0.76,163.79,163.75,26.0]
[1752186874918,0.76,163.79,163.76,32.58]
[1752186875113,0.06,163.79,163.77,5.36743384]
[1752186875709,0.06,163.79,163.76,38.61743384]
[1752186877034,0.76,163.79,163.76,32.58]
[1752186877343,6.06743384,163.78,163.74,89.03]
[1752186877636,0.7,163.78,163.74,94.39743384]
[1752186877815,0.7,163.78,163.74,95.06743384]
[1752186878025,0.06,163.79,163.76,5.36743384]
[1752186878215,0.76,163.79,163.76,5.36743384]
[1752186879232,6.80575161,163.78,163.75,5.36743384]
[1752186879625,6.80575161,163.78,163.75,37.94743384]
[1752186882437,6.80575161,163.78,163.75,32.58]
[1752186882624,6.80575161,163.78,163.75,37.94743384]
[1752186884346,6.80575161,163.78,163.75,5.36743384]
[1752186884636,6.80575161,163.78,163.75,94.36743384]
[1752186886140,6.10575161,163.78,163.75,94.36743384]
[1752186886342,6.16547225,163.79,163.77,5.36743384]
[1752186886547,0.06,163.79,163.78,5.36743384]
[1752186886850,0.06,163.79,163.77,6.03743384]
[1752186887145,0.06,163.79,163.77,5.36743384]
[1752186890740,0.06,163.79,163.76,121.58]
[1752186890741,0.7,163.78,163.76,89.0]
[1752186890927,6.06743384,163.78,163.76,89.0]
[1752186891126,0.7,163.77,163.76,89.0]
[1752186891335,6.06743384,163.77,163.74,0.03]
[1752186891533,5.36743384,163.75,163.74,0.03]
[1752186891735,0.7,163.78,163.74,5.39743384]
[1752186891947,0.7,163.78,163.74,6.06743384]
[1752186892140,6.10612444,163.77,163.75,5.36743384]
[1752186892535,6.79612444,163.77,163.75,5.36743384]
[1752186893128,6.79612444,163.77,163.74,37.95743384]
[1752186894132,5.36743384,163.75,163.74,0.03]
[1752186894324,6.05743384,163.75,163.74,0.03]
[1752186895044,0.69,163.75,163.74,0.03]
[1752186896644,0.75,163.79,163.74,5.39743384]
[1752186896823,0.75,163.79,163.75,5.36743384]
[1752186897026,0.69,163.78,163.75,5.36743384]
[1752186897225,0.69,163.78,163.74,89.7]
[1752186897434,0.69,163.78,163.74,94.39743384]
[1752186897644,0.06,163.79,163.77,5.36743384]
[1752186897953,0.06,163.79,163.78,5.36743384]
[1752186898136,0.06,163.79,163.78,94.36743384]
[1752186900136,0.06,163.79,163.78,89.0]
[1752186900447,0.06,163.79,163.78,127.57743384]
[1752186900951,0.06,163.79,163.78,133.68318545]
[1752186901436,0.06,163.79,163.78,61.89435413]
[1752186902132,0.06,163.79,163.78,50.42116868]
[1752186902336,0.06,163.79,163.75,0.67]
[1752186902543,6.05743384,163.78,163.74,2.470885]
[1752186902854,0.82317235,163.79,163.74,0.03]
[1752186902855,5.36743384,163.75,163.74,0.03]
[1752186903040,7.56883384,163.75,163.74,0.03]
[1752186903423,8.33219261,163.75,163.74,0.03]
[1752186903655,8.33219261,163.75,163.66,5.36743384]
[1752186903838,5.36743384,163.69,163.64,8.90481673]
[1752186904152,0.69,163.68,163.64,36.07738289]
[1752186904358,0.69,163.68,163.64,8.90481673]
[1752186904658,6.05743384,163.68,163.64,3.53738289]
[1752186904834,6.79985519,163.67,163.64,3.53738289]
[1752186905746,0.69,163.67,163.64,12.49468043]
[1752186905950,6.10953177,163.68,163.64,12.49468043]
[1752186906129,6.79953177,163.68,163.64,12.49468043]
[1752186906859,6.79953177,163.68,163.65,8.95729754]
[1752186907248,6.10953177,163.68,163.65,8.95729754]
[1752186907539,1.45359193,163.7,163.65,8.95729754]
[1752186907739,0.69,163.74,163.69,8.95729754]
[1752186907942,1.5114,163.75,163.72,8.95729754]
[1752186908144,2.2014,163.75,163.72,8.95729754]
[1752186908337,0.69,163.74,163.72,8.95729754]
[1752186908531,1.5114,163.75,163.72,8.95729754]
[1752186908734,8.30838217,163.75,163.72,8.95729754]
[1752186908929,7.61838217,163.75,163.72,97.95729754]
[1752186909141,12.57912652,163.76,163.73,8.95729754]
[1752186909335,6.4726,163.76,163.74,8.95729754]
[1752186909744,0.69,163.77,163.75,8.95729754]
[1752186910057,6.10582515,163.78,163.76,8.95729754]
[1752186910259,6.79582515,163.78,163.75,8.95729754]
[1752186911736,0.69,163.78,163.75,8.95729754]
[1752186911934,0.69,163.78,163.76,8.95729754]
[1752186912159,7.74355733,163.79,163.76,8.95729754]
[1752186912348,0.06,163.79,163.78,8.95729754]
[1752186913539,0.06,163.79,163.75,32.54]
[1752186913741,0.06,163.79,163.78,8.95729754]
[1752186915763,0.06,163.79,163.75,128.3167725]
[1752186916066,0.06,163.79,163.78,8.95729754]
[1752186916944,0.06,163.79,163.77,8.95729754]
[1752186917264,0.69,163.78,163.75,97.95729754]
[1752186917451,0.69,163.78,163.76,8.95729754]
[1752186918051,0.69,163.78,163.75,89.0]
[1752186918251,6.79589031,163.78,163.75,97.95729754]
[1752186918656,0.69,163.77,163.73,8.95729754]
[1752186918857,0.69,163.76,163.73,8.95729754]
[1752186919256,0.69,163.75,163.71,130.47729754]
[1752186919559,0.69,163.75,163.71,97.95729754]
[1752186919750,0.69,163.75,163.72,8.95729754]
[1752186919952,0.69,163.75,163.71,89.0]
[1752186920154,6.79715601,163.75,163.72,8.95729754]
[1752186920548,0.69,163.74,163.71,97.95729754]
[1752186920768,0.69,163.73,163.69,8.95729754]
[1752186920950,0.69,163.73,163.69,41.47729754]
[1752186921149,8.95729754,163.73,163.67,0.67]
[1752186921447,0.69,163.72,163.68,41.47729754]
[1752186921660,0.69,163.74,163.69,8.95729754]
[1752186921861,8.95729754,163.74,163.68,33.19]
[1752186922078,0.67,163.73,163.72,0.03]
[1752186922248,6.77761619,163.73,163.72,0.03]
[1752186923063,6.10735865,163.74,163.72,0.03]
[1752186923951,0.67,163.74,163.72,0.03]
[1752186924153,7.7373054,163.75,163.72,0.03]
[1752186924452,8.4073054,163.75,163.72,0.03]
[1752186925466,7.7373054,163.75,163.72,0.03]
[1752186925660,7.7373054,163.75,163.72,8.98729754]
[1752186925661,8.4073054,163.75,163.72,8.98729754]
[1752186926058,8.4073054,163.75,163.72,97.98729754]
[1752186927275,8.4073054,163.75,163.72,89.03]
[1752186927454,8.4073054,163.75,163.72,97.98729754]
[1752186928071,8.4073054,163.75,163.72,89.03]
[1752186928273,8.4073054,163.75,163.72,97.98729754]
[1752186929264,1.6304,163.75,163.73,8.95729754]
[1752186930162,6.10677912,163.76,163.73,8.95729754]
[1752186930381,6.77677912,163.76,163.73,8.95729754]
[1752186930556,6.10677912,163.76,163.73,8.95729754]
[1752186930758,16.88218418,163.79,163.75,8.95729754]
[1752186930759,2.38127235,163.79,163.75,8.95729754]
[1752186930974,1.6181,163.79,163.78,8.95729754]
[1752186931590,1.6181,163.79,163.77,8.95729754]
[1752186931781,7.72356984,163.79,163.77,8.95729754]
[1752186932378,6.16546984,163.79,163.77,8.95729754]
[1752186933062,0.06,163.79,163.77,8.95729754]
[1752186934282,0.06,163.79,163.78,8.95729754]
[1752186934788,0.06,163.79,163.75,122.18]
[1752186935080,0.06,163.79,163.77,8.95729754]
[1752186938287,6.16537883,163.79,163.77,8.95729754]
[1752186938883,6.16537883,163.79,163.77,5.36528524]
[1752186940274,6.16537883,163.79,163.75,33.18]
[1752186940474,6.16537883,163.79,163.77,5.36528524]
[1752186941373,0.67,163.78,163.75,37.86528524]
[1752186941567,6.03528524,163.78,163.74,5.36528524]
[1752186941889,0.67,163.77,163.74,5.36528524]
[1752186942379,6.83537883,163.79,163.75,5.36528524]
[1752186942691,0.67,163.78,163.75,5.36528524]
[1752186943071,0.67,163.77,163.74,5.36528524]
[1752186943384,6.10687022,163.75,163.73,94.36528524]
[1752186943584,6.10687022,163.75,163.73,5.36528524]
[1752186944176,6.10687022,163.75,163.74,5.36528524]
[1752186944771,6.10687022,163.75,163.72,26.03]
[1752186945178,6.10687022,163.75,163.74,5.36528524]
[1752186945384,29.37703554,163.77,163.74,5.36528524]
[1752186945583,5.36528524,163.75,163.72,0.03]
[1752186945790,6.12869063,163.74,163.72,0.03]
[1752186945974,6.79869063,163.74,163.72,0.03]
[1752186946294,6.03528524,163.73,163.72,0.03]
[1752186946596,0.67,163.73,163.72,0.03]
[1752186946890,6.79873726,163.73,163.72,0.03]
[1752186947083,1.43345202,163.73,163.65,0.68]
[1752186947287,5.36528524,163.7,163.65,32.48]
[1752186947482,6.77873549,163.7,163.66,5.36528524]
[1752186947684,0.67,163.69,163.66,5.36528524]
[1752186949398,6.77923872,163.69,163.66,5.36528524]
[1752186950884,6.77923872,163.69,163.66,94.36528524]
[1752186952396,6.10923872,163.69,163.66,95.02528524]
[1752186952610,6.1087891,163.7,163.68,5.36528524]
[1752186953178,6.10761619,163.73,163.69,6.02528524]
[1752186953380,6.10761619,163.73,163.71,5.36528524]
[1752186953597,6.10724319,163.74,163.7,5.36528524]
[1752186953800,0.7,163.73,163.7,5.36528524]
[1752186954692,6.10724319,163.74,163.7,5.36528524]
[1752186954908,6.80724319,163.74,163.71,5.36528524]
[1752186955208,6.10724319,163.74,163.72,5.36528524]
[1752186955684,0.7,163.74,163.71,94.36528524]
[1752186956686,6.80794015,163.73,163.71,94.36528524]
[1752186957292,6.10794015,163.73,163.71,94.36528524]
[1752186957489,6.10727623,163.74,163.72,5.36528524]
[1752186959299,6.10727623,163.74,163.71,89.0]
[1752186959606,6.10727623,163.74,163.71,94.36528524]
[1752186960489,6.80727623,163.74,163.71,94.36528524]
[1752186960805,6.10695416,163.75,163.71,89.66]
[1752186960983,6.80655938,163.76,163.73,5.36528524]
[1752186961383,14.11180178,163.77,163.74,5.36528524]
[1752186961602,6.10620178,163.77,163.74,6.02528524]
[1752186962185,6.10620178,163.77,163.75,5.36528524]
[1752186963895,0.06,163.78,163.76,5.36528524]
[1752186964420,0.06,163.78,163.77,5.36528524]
[1752186964795,6.16575161,163.78,163.76,94.36528524]
[1752186965000,0.06,163.78,163.76,94.36528524]
[1752186965201,0.06,163.78,163.76,89.0]
[1752186965415,0.76,163.78,163.76,94.36528524]
[1752186967021,6.86576727,163.78,163.76,94.36528524]
[1752186967410,0.7,163.77,163.76,89.0]
[1752186968116,6.80612444,163.77,163.76,89.0]
[1752186970025,12.17140968,163.77,163.76,89.0]
[1752186970344,27.43672078,163.77,163.71,57.34110815]
[1752186970538,7.8353,163.74,163.71,0.03]
[1752186970829,0.76345202,163.73,163.71,0.03]
[1752186971330,13.20058524,163.74,163.71,0.03]
[1752186971331,7.8353,163.74,163.71,0.03]
[1752186971737,0.7,163.75,163.71,6.05528524]
[1752186972417,6.10724319,163.74,163.71,5.39528524]
[1752186973045,6.10724319,163.74,163.71,6.05528524]
[1752186974529,6.10657639,163.76,163.72,0.66]
[1752186974725,0.7,163.75,163.72,5.36528524]
[1752186975045,6.10657639,163.76,163.72,5.36528524]
[1752186975250,6.10657639,163.76,163.72,6.02528524]
[1752186975422,6.80657639,163.76,163.72,6.02528524]
[1752186975622,6.80657639,163.76,163.73,5.36528524]
[1752186976436,0.7,163.75,163.73,57.31110815]
[1752186976722,5.36528524,163.74,163.73,57.31110815]
[1752186977043,6.06528524,163.74,163.73,57.31110815]
[1752186977245,0.7,163.74,163.73,57.31110815]
[1752186977443,6.06528524,163.74,163.73,57.31110815]
[1752186977754,6.80724319,163.74,163.73,57.31110815]
[1752186978134,12.17252843,163.74,163.73,57.31110815]
[1752186978656,6.80724319,163.74,163.73,57.31110815]
[1752186978818,12.17252843,163.74,163.73,57.31110815]
[1752186979746,6.80724319,163.74,163.73,57.31110815]
[1752186981827,12.17252843,163.74,163.73,57.31110815]
[1752186982027,6.80724319,163.74,163.73,57.31110815]
[1752186982266,6.80724319,163.74,163.71,0.03]
[1752186982458,0.66,163.73,163.71,0.03]
[1752186982921,0.66,163.72,163.71,0.03]
[1752186983750,0.76340539,163.74,163.71,0.03]
[1752186983940,0.66,163.74,163.71,0.03]